Cogmind - Beta 13 @@@ ROGUE MODE // 2024.04.16 @ 10:45:15 Player: BagelsSniperWolf Result: Destroyed by G-47 Trooper with Particle Gun Performance ------------- Evolutions (2) 1000 Regions Visited (4) 800 Robots Destroyed (24) 120 Value Destroyed (777) 777 Prototype IDs (1) 20 Alien Tech Used (0) 0 Bonus (7) 7 TOTAL SCORE: 2724 Bonus ------- Follower Combat Kills 7 Cogmind --------- Core Integrity 0/550 Matter 300/300 Energy 160/160 System Corruption 0% Temperature Warm (102) Movement Walking (260) Ox2 Location -8/Materials Parts ------- > --- POWER (2) -------- Backup Power III Light Nuclear Core > --- PROPULSION (3) --- Aluminum Leg Aluminum Leg Aerolev Unit > --- UTILITY (3) ------ High-capacity Storage Unit Visual Processing Unit > --- WEAPON (3) ------- Particle Gun Backup Laser III Backup Laser III > --- INVENTORY (20) --- (None) Peak State ------------ > --- POWER ------------ Backup Power III Light Nuclear Core > --- PROPULSION ------- Aluminum Leg Aluminum Leg Aerolev Unit > --- UTILITY ---------- High-capacity Storage Unit Visual Processing Unit > --- WEAPON ----------- Particle Gun Backup Laser III Backup Laser III > --- INVENTORY -------- (None) [Rating: 23] Favorites ----------- Power Ion Engine Engine Ion Engine Power Core Light Nuclear Core Propulsion Compact Wheel Leg Aluminum Leg Wheel Compact Wheel Hover Unit Aerolev Unit Utility Visual Processing Unit Storage High-capacity Storage Unit Processor Visual Processing Unit Weapon Autogun Energy Gun Backup Laser III Ballistic Gun Autogun Build | -11 -10 -9 -9 -8 ------- Run | Yrd Mat Mat Min Mat Slots Evolved 4 | . . 2 . 2 Power 1 | . . 1 . . Propulsion 1 | . . 1 . . Utility 1 | . . . . 1 Weapon 1 | . . . . 1 Parts Attached 32 | 4 4 13 1 10 Power 8 | 1 . 3 1 3 Engine 6 | 1 . 3 1 1 Core 2 | . . . . 2 Reactor . | . . . . . Propulsion 13 | 2 1 6 . 4 Treads . | . . . . . Leg 2 | . . . . 2 Wheel 10 | 2 1 6 . 1 Hover 1 | . . . . 1 Flight . | . . . . . Utility 3 | 1 1 1 . . Device . | . . . . . Storage 2 | 1 . 1 . . Processor 1 | . 1 . . . Hackware . | . . . . . Protection . | . . . . . Artifact . | . . . . . Weapon 8 | . 2 3 . 3 Energy Gun 2 | . . . . 2 Energy Cannon . | . . . . . Ballistic Gun 6 | . 2 3 . 1 Ballistic Cannon . | . . . . . Launcher . | . . . . . Special Weapon . | . . . . . Impact Weapon . | . . . . . Slashing Weapon . | . . . . . Piercing Weapon . | . . . . . Special Melee Weapon . | . . . . . Unidentified Prototypes 1 | . . . . 1 Parts Lost 17 | . . 2 . 15 Power 7 | . . 2 . 5 Propulsion 6 | . . . . 6 Utility . | . . . . . Weapon 4 | . . . . 4 Highest Loss Streak 9 | . . 1 . 9 To Critical Strikes 1 | . . . . 1 Average Slot Usage (%) 84 | . 86 97 100 60 Engine 15 | . 14 19 22 9 Core 1 | . . . . 4 Leg 1 | . . . . 4 Wheel 23 | . 28 33 33 5 Hover 1 | . . . . 4 Storage 10 | . 14 11 11 9 Processor 9 | . 1 11 11 9 Energy Gun 3 | . . . . 12 Ballistic Gun 16 | . 28 21 22 2 Naked Turns . | . . . . . Heaviest Build 59 | 10 13 56 56 59 Greatest Support 42 | 26 32 42 42 42 Greatest Overweight (x) 17 | . . 1 1 17 Average Overweight (x) 1 | . . . 1 4 Largest Inventory Capacity 20 | 8 8 20 20 20 Average Capacity 17 | 7 8 19 20 20 Most Carried 7 | 6 6 7 5 5 Average Carried 4 | 3 4 5 5 1 Final Capacity 20 | 8 8 20 20 20 Final Carried 6 | 6 5 6 5 . Class Distribution -------------------- 88% | Mutant 11% | Skirmisher Dominant Class ---------------- Mutant | -10/Materials Mutant | -9/Materials Mutant | -9/Mines Mutant | -8/Materials Resources | -11 -10 -9 -9 -8 ----------- Run | Yrd Mat Mat Min Mat Matter Collected 887 | 209 115 395 18 150 Remotely . | . . . . . Salvage Created 889 | . 126 381 . 382 Parts 54 | . 12 23 . 19 Haulers Intercepted . | . . . . . Recyclers Shooed . | . . . . . Parts Field Recycled . | . . . . . Retrieved Matter . | . . . . . Parts Self-Destructed . | . . . . . Prevented . | . . . . . Kills | -11 -10 -9 -9 -8 ------- Run | Yrd Mat Mat Min Mat Combat Hostiles Destroyed 20 | . 2 9 . 9 Guns 20 | . 2 9 . 9 Classes Destroyed 5 | . 2 2 . 1 Watcher 4 | . 2 2 . . Swarmer 4 | . . 2 . 2 Grunt 12 | . 2 6 . 4 Sentry 3 | . . 1 . 2 Hunter 1 | . . . . 1 Best Kill Streak 5 | . 4 3 . 5 Combat Bots Only 5 | . 2 2 . 5 Max Kills in Single Turn 1 | . 1 1 . 1 Gunslinging . | . . . . . Exploded . | . . . . . Melee . | . . . . . Uniques/NPCs Destroyed . | . . . . . Combat | -11 -10 -9 -9 -8 -------- Run | Yrd Mat Mat Min Mat Hostile Shots Fired 263 | . 13 84 . 166 Missed 85 | . 5 32 . 48 Damage Taken 2124 | . 85 614 . 1425 Core 695 | . 20 117 . 558 Absorbed by Shields . | . . . . . Regen/Repaired (Parts) 67 | . . 67 . . Core Remaining (%) 87 | 100 92 . 70 . Volleys Fired 87 | . 11 42 . 34 Largest 3 | . 2 2 . 3 Hottest 145 | . 40 46 . 145 Shots Fired 165 | . 22 84 . 59 Gun 165 | . 22 84 . 59 Cannon . | . . . . . Launcher . | . . . . . Special . | . . . . . Kinetic 121 | . 22 84 . 15 Thermal 44 | . . . . 44 Explosive . | . . . . . Electromagnetic . | . . . . . Robot Hit Streak 11 | . 4 11 . 11 Robot Miss Streak 5 | . 2 5 . 5 Penetration Max . | . . . . . Secondary Targets 6 | . 1 3 . 2 Max Gunslinging Chain 1 | . 1 1 . 1 Shots Hit Robots 110 | . 13 52 . 45 Core Hits 43 | . 7 17 . 19 Critical Kills . | . . . . . Critical Parts Destroyed . | . . . . . Critical Strikes . | . . . . . Melee Attacks . | . . . . . Impact . | . . . . . Slashing . | . . . . . Piercing . | . . . . . Sneak Attacks . | . . . . . Combat Hostiles . | . . . . . Follow-up Attacks . | . . . . . Damage Inflicted 1494 | . 131 772 . 591 Guns 1494 | . 131 772 . 591 Cannons . | . . . . . Explosions . | . . . . . Melee . | . . . . . Ramming . | . . . . . Kinetic 1092 | . 131 772 . 189 Thermal 402 | . . . . 402 Explosive . | . . . . . Electromagnetic . | . . . . . Impact . | . . . . . Slashing . | . . . . . Piercing . | . . . . . Highest Corruption . | . . . . . Average Corruption . | . . . . . Corruption Purged . | . . . . . Corruption Blocked . | . . . . . Overload Shots . | . . . . . Overflow Damage . | . . . . . Projectiles . | . . . . . Explosions . | . . . . . Melee . | . . . . . Knockbacks . | . . . . . Impact . | . . . . . Kinetic . | . . . . . Secondary . | . . . . . Self-Inflicted Damage . | . . . . . Shots . | . . . . . Rammed . | . . . . . Targets Rammed . | . . . . . Kicked . | . . . . . Crushed . | . . . . . Highest Temperature 241 | . 12 93 . 241 Average Temperature 65 | . 7 33 . 111 Received Heat Transfer 594 | . 48 249 . 297 Siege Activations . | . . . . . Robots Corrupted . | . . . . . Combat Hostiles . | . . . . . Parts Fried . | . . . . . Impact Corruptions . | . . . . . Robots Melted . | . . . . . Combat Hostiles . | . . . . . Parts Melted 1 | . . . . 1 Heat Transferred 1077 | . . . . 1077 Parts Sabotaged . | . . . . . Parts Stolen . | . . . . . Parts Stripped . | . . . . . Power Chain Reactions . | . . . . . Alert | -11 -10 -9 -9 -8 ------- Run | Yrd Mat Mat Min Mat Peak Influence 237 | . 84 237 45 137 Initial 45 | . . 35 45 17 Average 84 | . 30 100 45 97 Maximum Alert Level 1 | . . 1 . . Low Security (%) 91 | 100 100 82 100 100 Level 1 8 | . . 17 . . Level 2 . | . . . . . Level 3 . | . . . . . Level 4 . | . . . . . Level 5 . | . . . . . High Security . | . . . . . Max Security . | . . . . . Squads Dispatched 6 | . . 2 . 4 Investigation 3 | . . 2 . 1 Extermination . | . . . . . Reinforcement . | . . . . . Assault . | . . . . . Garrison 3 | . . . . 3 Intercept . | . . . . . Searches Triggered . | . . . . . Construction Impeded . | . . . . . Haulers Reinforced . | . . . . . Active Scanning Responses . | . . . . . Cargo Convoy Interrupts . | . . . . . Stealth | -11 -10 -9 -9 -8 --------- Run | Yrd Mat Mat Min Mat Distress Signals 1 | . 1 . . . Communications Jammed . | . . . . . Distress Signals . | . . . . . Times Spotted 40 | . 10 17 . 13 Peak Tracking Total 6 | . 6 5 . 6 Tactical Retreats . | . . . . . Traps | -11 -10 -9 -9 -8 ------- Run | Yrd Mat Mat Min Mat Traps Triggered . | . . . . . Indirectly . | . . . . . Trap Hack Attempts . | . . . . . Triggered . | . . . . . Disarmed . | . . . . . Reprogrammed . | . . . . . Reused . | . . . . . Traps Extracted . | . . . . . Installed . | . . . . . Triggered . | . . . . . Machines | -11 -10 -9 -9 -8 ---------- Run | Yrd Mat Mat Min Mat Machines Disabled 1 | . . . . 1 Max in Single Turn . | . . . . . Machines Repaired . | . . . . . Machines Dismantled . | . . . . . Machines Sabotaged . | . . . . . Overloaded Fab Kills . | . . . . . Hacking | -11 -10 -9 -9 -8 --------- Run | Yrd Mat Mat Min Mat Machines Accessed 7 | . 1 4 . 2 Terminals 4 | . 1 2 . 1 Fabricators . | . . . . . Repair Stations 3 | . . 2 . 1 Recycling Units . | . . . . . Scanalyzers . | . . . . . Garrison Access . | . . . . . Total Hacks 24 | . 3 15 . 6 Successful 15 | . 3 10 . 2 Failed 9 | . . 5 . 4 Catastrophic 2 | . . 1 . 1 Database Lockouts . | . . . . . Manual 1 | . . . . 1 Terminals 16 | . 3 8 . 5 Fabricators . | . . . . . Repair Stations 8 | . . 7 . 1 Recycling Units . | . . . . . Scanalyzers . | . . . . . Garrison Access . | . . . . . Terminal Hacks 10 | . 3 6 . 1 Record 6 | . 3 3 . . Emergency Access Points 1 | . . 1 . . Alert Level 1 | . . 1 . . Locate Traps 1 | . . . . 1 Zone Layout 1 | . . 1 . . Fabricator Hacks . | . . . . . Repair Station Hacks 5 | . . 4 . 1 Scan Component 2 | . . 2 . . Repair 2 | . . 2 . . Refit 1 | . . . . 1 Recycling Unit Hacks . | . . . . . Scanalyzer . | . . . . . Garrison Access Hacks . | . . . . . Unauthorized Hacks . | . . . . . Terminals . | . . . . . Fabricators . | . . . . . Repair Stations . | . . . . . Recycling Units . | . . . . . Scanalyzers . | . . . . . Garrison Access . | . . . . . Data Cores Recovered . | . . . . . Used . | . . . . . Hacking Detections 7 | . 1 4 . 2 Full Trace Events 4 | . . 3 . 1 Feedback Events . | . . . . . Feedback Blocked . | . . . . . Robot Schematics Acquired . | . . . . . Robots Built . | . . . . . Authchips . | . . . . . Time . | . . . . . Total Robot Build Rating . | . . . . . Part Schematics Acquired . | . . . . . Parts Built . | . . . . . Authchips . | . . . . . Time . | . . . . . Total Part Build Rating . | . . . . . Parts Repaired 2 | . . 2 . . Time 52 | . . 52 . . Parts Recycled . | . . . . . Recycled Matter . | . . . . . Retrieved Matter . | . . . . . Retrieved Components . | . . . . . Parts Scanalyzed . | . . . . . Part Schematics Acquired . | . . . . . Parts Damaged . | . . . . . Bothacking | -11 -10 -9 -9 -8 ------------ Run | Yrd Mat Mat Min Mat Used RIF Installer . | . . . . . Robots Hacked . | . . . . . Non-combat . | . . . . . Combat . | . . . . . Robot Hacks Applied . | . . . . . Relay Couplers Released . | . . . . . Fabnet Peak Effective % . | . . . . . Robots Rewired . | . . . . . Allies Hacked . | . . . . . Hacks Repelled . | . . . . . Allies | -11 -10 -9 -9 -8 -------- Run | Yrd Mat Mat Min Mat Total Allies 1 | . . . 1 . Largest Group 1 | . . . 1 1 Highest-Rated Group 31 | . . . 31 31 Highest-Rated Ally 31 | . . . 31 31 Total Orders . | . . . . . Ally Attacks 7 | . . . . 7 Total Damage 127 | . . . . 127 Kills 1 | . . . . 1 Allies Corrupted . | . . . . . Allies Melted . | . . . . . Intel | -11 -10 -9 -9 -8 ------- Run | Yrd Mat Mat Min Mat Robot Analysis Total . | . . . . . Derelict Logs Recovered 1 | . . . 1 . Drone Launches . | . . . . . Drone Recoveries . | . . . . . Exploration | -11 -10 -9 -9 -8 ------------- Run | Yrd Mat Mat Min Mat Turns Passed 1109 | 55 123 548 55 328 Spaces Moved 510 | 42 80 269 39 80 Core 13 | 1 . . . 12 Treads . | . . . . . Legs 23 | . . . . 23 Wheels 470 | 41 80 269 39 41 Hover 4 | . . . . 4 Flight . | . . . . . Fastest Speed 50 | 50 90 86 108 108 Average Speed 127 | 86 96 102 108 273 Slowest Speed 900 | 90 100 108 108 900 Overloaded Moves . | . . . . . Propulsion Burnouts . | . . . . . Robots Hopped . | . . . . . Cave-ins Triggered . | . . . . . Exploration Rate (%) 13 | 3 20 27 10 9 Regions Visited 4 Branch Regions 1 Pre-discovered Areas 1 | . . . 1 . Known Exits Taken . | . . . . . Unknown Exits Taken 4 | 1 1 1 1 . Scrap Searched 1 | . . . 1 . Spaces Dug . | . . . . . Terrain Destroyed . | . . . . . Melee . | . . . . . Projectile . | . . . . . AOE . | . . . . . Terrain Rammed . | . . . . . Walls Destroyed . | . . . . . Machines Disabled . | . . . . . Actions | -11 -10 -9 -9 -8 --------- Run | Yrd Mat Mat Min Mat Total 825 | 60 105 472 51 137 Wait 171 | 5 9 137 12 8 Move 506 | 41 79 268 38 80 Hop . | . . . . . Pick Up 26 | 10 2 9 . 5 Fast Attach . | . . . . . Attach 25 | 4 3 7 1 10 Detach . | . . . . . Swap 7 | . 1 6 . . Drop 3 | . . 3 . . Fire 87 | . 11 42 . 34 Melee . | . . . . . Ram . | . . . . . Kick . | . . . . . Crush . | . . . . . Escape Stasis . | . . . . . Rewire . | . . . . . Trap . | . . . . . Miscellaneous . | . . . . . Route ------- -11/Scrapyard -10/Materials -9/Materials (discovered 2 exits: *Mat / [*Min]) -9/Mines -8/Materials History --------- Turn | Location | Event 10 | -11/Scrapyard | Discovered new exit (range 16) 56 | -11/Scrapyard | Entered Materials 135 | -10/Materials | Discovered new exit (range 15) 179 | -10/Materials | Entered another Materials area 179 | -9/Materials | Evolved 2 slots: Power x1, Propulsion x1 302 | -9/Materials | Build established: Mutant 420 | -9/Materials | Repaired Wheel 537 | -9/Materials | Repaired Wheel 671 | -9/Materials | Discovered new exit (range 9) 711 | -9/Materials | Discovered new exit (range 15) 727 | -9/Materials | Entered Mines 730 | -9/Mines | Received a Mining Laser from a helpful Derelict 769 | -9/Mines | Learned location of Storage (-8) 775 | -9/Mines | Discovered new exit (range 6) 782 | -9/Mines | Entered Materials 782 | -8/Materials | Accompanied by 1 ally 782 | -8/Materials | Evolved 2 slots: Utility x1, Weapon x1 816 | -8/Materials | Garrison activated, responded to threat 878 | -8/Materials | Lost 9 parts (2p3n4w) 898 | -8/Materials | Core integrity fell below 50% 925 | -8/Materials | Lost 3 parts (2p1n) 948 | -8/Materials | Core integrity fell below 20% 1006 | -8/Materials | Lost 3 parts (1p2n) 1110 | -8/Materials | Destroyed by G-47 Trooper with Particle Gun Last Messages --------------- Slug penetrates Processing Tank. G-47 Trooper destroyed. Penetrated by Slug. Backup Propulsion III destroyed. Penetrated by Slug. G-47 Trooper destroyed. Switching to secondary target: H-55 Commando. Slug penetrates Repair Station. Backup Power III destroyed. H-55 Commando destroyed. K-01 Serf collects debris. Acquired Lgt. Nuclear Core. Acquired Prototype Hover Unit. Identified Aerolev Unit. Acquired 20 matter. Acquired Particle Gun. Acquired 30 matter. R-06 Scavenger collects Flight Unit. Connecting with Repair Station... K-01 Serf collects debris. Map ----- +----------------------------------------------------+ | | | | | | | | | | | | | | | | | | | ?????????????????????????????????????????????????? | | ???????????????????????????????###???????????????? | | ??????????????????????????????##!!!??????????????? | | ??????????????????????????????#! ?????????????? | | ??????????????????????????????# ??########### | | ?????????????????????????????## ### | | ?????????????????????????#???# | | ????????????????????????? ???# | | ????????????????????????# #??# !% [ | | ????????????????????????# #??# ! [ | | ???????????????????????? w??# ####### | | ???????????????????????? T #?????? | | ???????????????????????? k ?##############/##????? | | ????????????????????????#g#??????# # #????? | | ????????????????????????# #?????## # """" #????? | | ????????????????????????#g#?????#T # """" #????? | | ????????????????????????#@######## + """" #????? | | ????????????????????????# # # #????? | | ????????????????????????#u# # #????? | | ????????????????????????# # ########????? | | ????????????????????????#+##+##### #???????????? | | ????????????????????????# # #???????????? | | ????????????????????????# """"" # #???????????? | | ????????????????????????# " """ + #???????????? | | ????????????????????????#[%= # #???????????? | | ????????????????????????# %% % # #???????????? | | ????????????????????????# # ??????????? | | ????????????????????????# " "" # ????????? | | ????????????????????????# "R"" # """???????? | | ????????????????????????# """ # """"" ?????? | | ????????????????????????########## """""??????? | | ?????????????????????????????????# """???????? | | ?????????????????????????????????# """???????? | | ?????????????????????????????????# ????????? | | ?????????????????????????????????# ????????? | | ?????????????????????????????????#########???????? | | ?????????????????????????????????????????????????? | | ?????????????????????????????????????????????????? | | ?????????????????????????????????????????????????? | | ?????????????????????????????????????????????????? | | ?????????????????????????????????????????????????? | +----------------------------------------------------+ Best States ------------- Heat Dissipation 31 Energy Generation 27 Energy Capacity 400 Matter Stores 300 Matter Capacity 300 Sight Range 18 Terrain Scan Density 10 Evasion (%) 44 Item Schematics ----------------- None Robot Schematics ------------------ None Fabricated ------------ Nothing Alien Tech Used ----------------- None Achievements -------------- None Challenges ------------ None Game ------ Seed PhasingComponentPurifier Manual? 0 Play Time 00:22:56 Cumulative 5.9 hours Start 2024.04.16 @ 09:52:03 End 2024.04.16 @ 10:45:15 Sessions 1 Manual Loads 0 Difficulty Rogue Special Mode None Game No. 10 Rogue 10 Adventurer 0 Explorer 0 Win Type - Total 0 Types 0/0/0/0/0/0/0/0/0 Lore% 5 Gallery% 10 Achievement% 11 Wizard Run 0 Options --------- Layout 0 ASCII 0 Keyboard 0 Movement Mouse Keybinds 0 Fullscreen 1 Font 18/SmallcapsGlow Map View 76x50 Zoom Use 0% Tactical HUD 0 Map Filters NONE Filters NONE Steam 1 RUN: cbef518c-5f24-455b-910f-540876a235e6